Cogmind - Beta 13 @@@ ROGUE MODE // 2024.04.16 @ 00:15:10 Player: TheBermanGrit Result: Destroyed by as-60119 with Assembled Maul Performance ------------- Evolutions (0) 0 Regions Visited (2) 400 Robots Destroyed (4) 20 Value Destroyed (162) 162 Prototype IDs (0) 0 Alien Tech Used (0) 0 Bonus (0) 0 TOTAL SCORE: 582 Bonus ------- None Cogmind --------- Core Integrity 0/250 Matter 300/300 Energy 100/100 System Corruption 2% Temperature Cool (0) Movement Core (150) Ox2 Location -10/Mines Parts ------- > --- POWER (1) -------- (None) > --- PROPULSION (2) --- (None) > --- UTILITY (2) ------ Small Storage Unit > --- WEAPON (2) ------- Flail > --- INVENTORY (8) ---- Light Treads Light Treads Improved Hover Unit Improved Hover Unit Disposable Heat Sink Targeting Computer Power Shielding Flail Peak State ------------ > --- POWER ------------ Light Ion Engine > --- PROPULSION ------- Improved Hover Unit Improved Hover Unit > --- UTILITY ---------- Improved Heat Sink Small Storage Unit > --- WEAPON ----------- Assault Rifle Flail > --- INVENTORY -------- Wheel Wheel Improved Hover Unit Disposable Heat Sink Light Assault Rifle Flail Flail [Rating: 13] Favorites ----------- Power Light Ion Engine Engine Light Ion Engine Propulsion Light Treads Treads Light Treads Hover Unit Improved Hover Unit Utility Small Storage Unit Device Improved Heat Sink Storage Small Storage Unit Weapon Assault Rifle Ballistic Gun Assault Rifle Impact Weapon Hammer Build | -11 -10 -10 ------- Run | Yrd Mat Min Slots Evolved . | . . . Power . | . . . Propulsion . | . . . Utility . | . . . Weapon . | . . . Parts Attached 13 | 6 7 . Power 2 | 1 1 . Engine 2 | 1 1 . Core . | . . . Reactor . | . . . Propulsion 4 | 2 2 . Treads 2 | 2 . . Leg . | . . . Wheel . | . . . Hover 2 | . 2 . Flight . | . . . Utility 2 | 1 1 . Device 1 | . 1 . Storage 1 | 1 . . Processor . | . . . Hackware . | . . . Protection . | . . . Artifact . | . . . Weapon 5 | 2 3 . Energy Gun . | . . . Energy Cannon . | . . . Ballistic Gun 3 | 2 1 . Ballistic Cannon . | . . . Launcher . | . . . Special Weapon . | . . . Impact Weapon 2 | . 2 . Slashing Weapon . | . . . Piercing Weapon . | . . . Special Melee Weapon . | . . . Unidentified Prototypes . | . . . Corrupted Parts 1 | . 1 . System Corruption 1 | . 1 . Parts Lost 6 | . 1 5 Power 2 | . 1 1 Propulsion 2 | . . 2 Utility 1 | . . 1 Weapon 1 | . . 1 Highest Loss Streak 5 | . 1 5 To Critical Strikes . | . . . Average Slot Usage (%) 85 | . 83 89 Engine 12 | . 12 12 Treads 18 | . 27 . Hover 8 | . . 25 Device 4 | . . 13 Storage 14 | . 14 14 Ballistic Gun 14 | . 16 10 Impact Weapon 12 | . 11 14 Naked Turns . | . . . Heaviest Build 13 | 10 13 13 Greatest Support 40 | 40 40 14 Greatest Overweight (x) 2 | . 1 2 Average Overweight (x) . | . . . Largest Inventory Capacity 8 | 8 8 8 Average Capacity 7 | 7 8 8 Most Carried 8 | 4 8 8 Average Carried 5 | 2 5 7 Final Capacity 8 | 8 8 8 Final Carried 8 | 4 8 8 Class Distribution -------------------- 100% | Mutant Dominant Class ---------------- Mutant | -10/Materials Mutant | -10/Mines Resources | -11 -10 -10 ----------- Run | Yrd Mat Min Matter Collected 367 | 252 72 43 Remotely . | . . . Salvage Created 166 | . 99 67 Parts 4 | . 2 2 Haulers Intercepted . | . . . Recyclers Shooed . | . . . Parts Field Recycled . | . . . Retrieved Matter . | . . . Parts Self-Destructed . | . . . Prevented . | . . . Kills | -11 -10 -10 ------- Run | Yrd Mat Min Combat Hostiles Destroyed 4 | . 2 2 Melee 2 | . . 2 Guns 1 | . 1 . Classes Destroyed 1 | . 1 . Grunt 4 | . 2 2 Best Kill Streak 2 | . 2 2 Combat Bots Only 2 | . 2 2 Max Kills in Single Turn 1 | . 1 1 Gunslinging . | . . . Exploded . | . . . Melee 1 | . . 1 Uniques/NPCs Destroyed . | . . . Combat | -11 -10 -10 -------- Run | Yrd Mat Min Hostile Shots Fired 94 | . 30 64 Missed 27 | . 4 23 Damage Taken 962 | . 383 579 Core 264 | . 55 209 Absorbed by Shields . | . . . Core Remaining (%) 100 | 100 . . Volleys Fired 14 | . 13 1 Largest 1 | . 1 1 Hottest 20 | . 20 20 Shots Fired 14 | . 13 1 Gun 14 | . 13 1 Cannon . | . . . Launcher . | . . . Special . | . . . Kinetic 14 | . 13 1 Thermal . | . . . Explosive . | . . . Electromagnetic . | . . . Robot Hit Streak 3 | . 3 2 Robot Miss Streak 1 | . 1 . Penetration Max . | . . . Secondary Targets . | . . . Shots Hit Robots 20 | . 14 6 Core Hits 6 | . 4 2 Critical Kills . | . . . Critical Parts Destroyed 2 | . 1 1 Critical Strikes 2 | . 1 1 Smash 2 | . 1 1 Melee Attacks 13 | . 6 7 Impact 13 | . 6 7 Slashing . | . . . Piercing . | . . . Sneak Attacks . | . . . Combat Hostiles . | . . . Follow-up Attacks . | . . . Damage Inflicted 475 | . 278 197 Guns 140 | . 128 12 Cannons . | . . . Explosions . | . . . Melee 335 | . 150 185 Ramming . | . . . Kinetic 140 | . 128 12 Thermal . | . . . Explosive . | . . . Electromagnetic . | . . . Impact 335 | . 150 185 Slashing . | . . . Piercing . | . . . Highest Corruption 2 | . 1 2 Average Corruption 1 | . 1 1 Corruption Purged . | . . . Corruption Blocked . | . . . Effects 1 | . . 1 Energy Discharges 1 | . . 1 Overload Shots . | . . . Overflow Damage 62 | . 32 30 Projectiles . | . . . Explosions . | . . . Melee 62 | . 32 30 Knockbacks 2 | . . 2 Impact 2 | . . 2 Kinetic . | . . . Secondary . | . . . Self-Inflicted Damage . | . . . Shots . | . . . Rammed . | . . . Targets Rammed . | . . . Kicked . | . . . Crushed . | . . . Highest Temperature 2 | . 2 . Average Temperature 2 | . 2 . Received Heat Transfer 437 | . 231 206 Siege Activations . | . . . Robots Corrupted . | . . . Combat Hostiles . | . . . Parts Fried 2 | . 2 . Impact Corruptions 3 | . 2 1 Robots Melted . | . . . Combat Hostiles . | . . . Parts Melted . | . . . Heat Transferred . | . . . Parts Sabotaged . | . . . Parts Stolen . | . . . Parts Stripped . | . . . Power Chain Reactions . | . . . Alert | -11 -10 -10 ------- Run | Yrd Mat Min Peak Influence 51 | . 51 40 Initial 19 | . . 19 Average 17 | . 21 17 Maximum Alert Level . | . . . Low Security (%) 100 | 100 100 100 Level 1 . | . . . Level 2 . | . . . Level 3 . | . . . Level 4 . | . . . Level 5 . | . . . High Security . | . . . Max Security . | . . . Squads Dispatched 1 | . . 1 Investigation . | . . . Extermination . | . . . Reinforcement . | . . . Assault 1 | . . 1 Garrison . | . . . Intercept . | . . . Searches Triggered . | . . . Construction Impeded . | . . . Haulers Reinforced . | . . . Active Scanning Responses . | . . . Cargo Convoy Interrupts . | . . . Stealth | -11 -10 -10 --------- Run | Yrd Mat Min Distress Signals . | . . . Communications Jammed . | . . . Distress Signals . | . . . Times Spotted 26 | . 3 23 Peak Tracking Total 12 | . 3 12 Tactical Retreats 3 | . . 3 Traps | -11 -10 -10 ------- Run | Yrd Mat Min Traps Triggered . | . . . Indirectly . | . . . Trap Hack Attempts . | . . . Triggered . | . . . Disarmed . | . . . Reprogrammed . | . . . Reused . | . . . Traps Extracted . | . . . Installed . | . . . Triggered . | . . . Machines | -11 -10 -10 ---------- Run | Yrd Mat Min Machines Disabled . | . . . Max in Single Turn . | . . . Machines Repaired . | . . . Machines Dismantled . | . . . Machines Sabotaged . | . . . Overloaded Fab Kills . | . . . Hacking | -11 -10 -10 --------- Run | Yrd Mat Min Machines Accessed 2 | . 2 . Terminals 2 | . 2 . Fabricators . | . . . Repair Stations . | . . . Recycling Units . | . . . Scanalyzers . | . . . Garrison Access . | . . . Total Hacks 3 | . 3 . Successful 2 | . 2 . Failed 1 | . 1 . Catastrophic . | . . . Database Lockouts . | . . . Manual . | . . . Terminals 3 | . 3 . Fabricators . | . . . Repair Stations . | . . . Recycling Units . | . . . Scanalyzers . | . . . Garrison Access . | . . . Terminal Hacks 2 | . 2 . Robot Analysis 1 | . 1 . Zone Layout 1 | . 1 . Fabricator Hacks . | . . . Repair Station Hacks . | . . . Recycling Unit Hacks . | . . . Scanalyzer . | . . . Garrison Access Hacks . | . . . Unauthorized Hacks . | . . . Terminals . | . . . Fabricators . | . . . Repair Stations . | . . . Recycling Units . | . . . Scanalyzers . | . . . Garrison Access . | . . . Data Cores Recovered . | . . . Used . | . . . Hacking Detections . | . . . Full Trace Events . | . . . Feedback Events . | . . . Feedback Blocked . | . . . Robot Schematics Acquired . | . . . Robots Built . | . . . Authchips . | . . . Time . | . . . Total Robot Build Rating . | . . . Part Schematics Acquired . | . . . Parts Built . | . . . Authchips . | . . . Time . | . . . Total Part Build Rating . | . . . Parts Repaired . | . . . Time . | . . . Parts Recycled . | . . . Recycled Matter . | . . . Retrieved Matter . | . . . Retrieved Components . | . . . Parts Scanalyzed . | . . . Part Schematics Acquired . | . . . Parts Damaged . | . . . Bothacking | -11 -10 -10 ------------ Run | Yrd Mat Min Used RIF Installer . | . . . Robots Hacked . | . . . Non-combat . | . . . Combat . | . . . Robot Hacks Applied . | . . . Relay Couplers Released . | . . . Fabnet Peak Effective % . | . . . Robots Rewired . | . . . Allies Hacked . | . . . Hacks Repelled . | . . . Allies | -11 -10 -10 -------- Run | Yrd Mat Min Total Allies 3 | . . 3 Largest Group 3 | . . 3 Highest-Rated Group 70 | . . 70 Highest-Rated Ally 31 | . . 31 Total Orders . | . . . Ally Attacks 7 | . . 7 Total Damage 86 | . . 86 Kills . | . . . Allies Corrupted . | . . . Allies Melted . | . . . Intel | -11 -10 -10 ------- Run | Yrd Mat Min Robot Analysis Total 1 | . 1 . Derelict Logs Recovered 1 | . . 1 Drone Launches . | . . . Drone Recoveries . | . . . Exploration | -11 -10 -10 ------------- Run | Yrd Mat Min Turns Passed 510 | 78 296 136 Spaces Moved 380 | 43 145 192 Core 5 | 2 . 3 Treads 172 | 41 131 . Legs . | . . . Wheels . | . . . Hover 203 | . 14 189 Flight . | . . . Fastest Speed 50 | 50 56 56 Average Speed 103 | 154 150 57 Slowest Speed 160 | 160 160 150 Overloaded Moves . | . . . Propulsion Burnouts . | . . . Robots Hopped . | . . . Cave-ins Triggered . | . . . Exploration Rate (%) 25 | 4 31 40 Regions Visited 2 Branch Regions 1 Pre-discovered Areas 1 | . . 1 Known Exits Taken . | . . . Unknown Exits Taken 2 | 1 1 . Scrap Searched 1 | . . 1 Spaces Dug . | . . . Terrain Destroyed . | . . . Melee . | . . . Projectile . | . . . AOE . | . . . Terrain Rammed . | . . . Walls Destroyed . | . . . Machines Disabled . | . . . Actions | -11 -10 -10 --------- Run | Yrd Mat Min Total 459 | 52 199 208 Wait 14 | . 14 . Move 378 | 42 144 192 Hop . | . . . Pick Up 17 | 4 9 4 Fast Attach 9 | 6 3 . Attach 2 | . 2 . Detach . | . . . Swap 2 | . 2 . Drop 10 | . 6 4 Fire 14 | . 13 1 Melee 13 | . 6 7 Ram . | . . . Kick . | . . . Crush . | . . . Escape Stasis . | . . . Rewire . | . . . Trap . | . . . Miscellaneous . | . . . Route ------- -11/Scrapyard -10/Materials -10/Mines History --------- Turn | Location | Event 25 | -11/Scrapyard | Discovered new exit (range 15) 79 | -11/Scrapyard | Entered Materials 304 | -10/Materials | Build established: Mutant 328 | -10/Materials | Discovered new exit (range 16) 375 | -10/Materials | Entered Mines 385 | -10/Mines | Met a Derelict testing a Signal Generator 404 | -10/Mines | Joined a pair of Derelicts in attacking an 0b10 outpost 407 | -10/Mines | Learned location of Zion (-6) 432 | -10/Mines | Assembled infested the area 434 | -10/Mines | Met a Derelict bent on vengeance 487 | -10/Mines | Lost 3 allies 491 | -10/Mines | Core integrity fell below 50% 502 | -10/Mines | Core integrity fell below 20% 511 | -10/Mines | Destroyed by as-60119 with Assembled Maul Last Messages --------------- G-34 Mercenary unfolds itself. M-13 Machinist unfolds itself. K-01 Serf system terminally corrupted. U-05 Engineer system terminally corrupted. G-34 Mercenary knocked back. Lgt. Ion Engine destroyed. System corrupted by crushing effect (+1). G-47 Trooper knocked back. Imp. Hover Unit destroyed. G-34 Mercenary suffers critical hit (Smash). Destroyed Heat Sink. G-34 Mercenary system corrupted by crushing effect. G-34 Mercenary destroyed. Imp. Heat Sink destroyed. M-13 Machinist destroyed. G-34 Mercenary system corrupted by crushing effect. G-34 Mercenary destroyed. G-47 Trooper destroyed. Map ----- +----------------------------------------------------+ | ???????????????????????????????????????????????? | | ???????????????????????????????????????????????? | | ???????????????????????????????????????????????? | | ???????????????????????????????????????????????? | | ???????????????????????????????????????????????? | | ???????????????????????????????????????????????? | | ???????????????????????????????????????????????? | | ??????????????????????????????????????????###### | | ??????????????????????????????????????????# | | ??????????????????????????????????????????# | | ???????????????????????????????????????#### #### | | ??????????????????????????????????????## ##?? | | ??????????????????????????????????????# &#?? | | ?????????????????????#???##??????????# #?? | | ????????????????????? ??? #?????????# ##?? | | ????????????????????? ??? #?????????# ###??? | | ????????????????????? #?? #?????????## #?????? | | ?????????????????????# ?? #?######???####??????? | | ?????????????????????# ##^## #??####???????? | | ????????????????????? ^ # #?## ##??????? | | ?????????????????????# #?# ##?????? | | ?????????????????????# ???# #?????? | | ?????????????????????? ????## ##????? | | ?????????????????????? #???### % ##???? | | ??????????????????????#g #???## ##??? | | ??????????????????????#@!#????## #??# | | ??????????????????????#a%#???## #### #?## | | ??????????????????????#%=#???# ##??## ### | | ??????????????????????#!%#???# #????# ## | | ??????????????????????# a#??## #????# | | ??????????????????????# %#?## ##????# | | ??????????????????????# ###% ##?????## | | ??????????????????????# % ##???????# | | ??????????????????????### ##???????## | | ????????????????????????######???????## | | ?????????????????????????????????????# | | ?????????????????????????????????????# ## | | ?????????????????????????????????????## #### | | ??????????????????????????????????????####??# | | ????????????????????????????????????????????## | | ?????????????????????????????????????????????# | | ?????????????????????????????????????????????## | | ??????????????????????????????????????????????## | | ???????????????????????????????????????????????? | | ???????????????????????????????????????????????? | | ???????????????????????????????????????????????? | | ???????????????????????????????????????????????? | | ???????????????????????????????????????????????? | | ???????????????????????????????????????????????? | | ???????????????????????????????????????????????? | +----------------------------------------------------+ Best States ------------- Heat Dissipation 39 Energy Generation 10 Energy Capacity 125 Matter Stores 300 Matter Capacity 300 Sight Range 16 Terrain Scan Density 10 Evasion (%) 53 Recoil Reduction 2 Item Schematics ----------------- None Robot Schematics ------------------ None Fabricated ------------ Nothing Alien Tech Used ----------------- None Achievements -------------- None Challenges ------------ None Game ------ Seed TimingNeutrinoRegenerator Manual? 0 Play Time 00:10:25 Cumulative 11.9 hours Start 2024.04.16 @ 00:04:29 End 2024.04.16 @ 00:15:10 Sessions 1 Manual Loads 0 Difficulty Rogue Special Mode None Game No. 21 Rogue 21 Adventurer 0 Explorer 0 Win Type - Total 0 Types 0/0/0/0/0/0/0/0/0 Lore% 17 Gallery% 16 Achievement% 13 Wizard Run 0 Options --------- Layout 1 ASCII 0 Keyboard 0 Movement Arrows Keybinds 0 Fullscreen 1 Font 24/Smallcaps Map View 50x35 Zoom Use 0% Tactical HUD 0 Map Filters NONE Filters NONE Steam 1 RUN: 36b9f40e-59b1-4f74-8438-5da9d32259af